[Event "Titled Tuesday Blitz August 09 Early 2022"]
[White "Seo, Jung Min"]
[Black "Gheorghiu, Calin"]
[WhiteFideId "1734687"]
[BlackFideId "1200305"]
[WhiteElo "2414"]
[BlackElo "2168"]
[Result "1-0"]
[Round "01"]
[TimeControl "180+1"]
[Date "2022.08.09"]
[WhiteClock "0:00:56"]
[BlackClock "0:00:14"]

1. e4 {[%clk 0:03:00]}  c5 {[%clk 0:02:56]} 2. Nf3 {[%clk 0:03:01]}  d6 {[%clk 0:02:55]} 3. d4 {[%clk 0:03:00]}  cxd4 {[%clk 0:02:56]} 4. Qxd4 {[%clk 0:03:00]}  a6 {[%clk 0:02:53]} 5. Be2 {[%clk 0:02:59]}  Nc6 {[%clk 0:02:52]} 6. Qe3 {[%clk 0:02:59]}  g6 {[%clk 0:02:50]} 7. O-O {[%clk 0:03:00]}  Bg7 {[%clk 0:02:51]} 8. Rd1 {[%clk 0:02:59]}  Nf6 {[%clk 0:02:43]} 9. h3 {[%clk 0:02:57]}  Nd7 {[%clk 0:02:39]} 10. c4 {[%clk 0:02:56]}  O-O {[%clk 0:02:39]} 11. Nc3 {[%clk 0:02:56]}  b6 {[%clk 0:02:37]} 12. b3 {[%clk 0:02:50]}  Bb7 {[%clk 0:02:34]} 13. Bb2 {[%clk 0:02:50]}  Rc8 {[%clk 0:02:34]} 14. Rd2 {[%clk 0:02:48]}  Nde5 {[%clk 0:02:20]} 15. Nh2 {[%clk 0:02:43]}  Qc7 {[%clk 0:02:17]} 16. Nd5 {[%clk 0:02:42]}  Qb8 {[%clk 0:02:10]} 17. Nxb6 {[%clk 0:02:38]}  Rcd8 {[%clk 0:02:08]} 18. f4 {[%clk 0:02:34]}  Nd7 {[%clk 0:01:58]} 19. Bxg7 {[%clk 0:02:32]}  Kxg7 {[%clk 0:01:59]} 20. Nxd7 {[%clk 0:02:27]}  Rxd7 {[%clk 0:02:00]} 21. e5 {[%clk 0:02:22]}  Nd8 {[%clk 0:01:54]} 22. Rad1 {[%clk 0:02:20]}  Ne6 {[%clk 0:01:52]} 23. Bg4 {[%clk 0:02:11]}  Qa8 {[%clk 0:01:31]} 24. f5 {[%clk 0:02:04]}  gxf5 {[%clk 0:01:26]} 25. Bxf5 {[%clk 0:02:04]}  Rg8 {[%clk 0:01:23]} 26. Ng4 {[%clk 0:02:01]}  Kf8 {[%clk 0:01:21]} 27. Qh6+ {[%clk 0:01:59]}  Ke8 {[%clk 0:00:52]} 28. Bxe6 {[%clk 0:01:56]}  fxe6 {[%clk 0:00:49]} 29. exd6 {[%clk 0:01:48]}  Qa7+ {[%clk 0:00:43]} 30. Kh2 {[%clk 0:01:46]}  Qc5 {[%clk 0:00:32]} 31. Qxh7 {[%clk 0:01:33]}  Rxg4 {[%clk 0:00:17]} 32. hxg4 {[%clk 0:01:31]}  Qe5+ {[%clk 0:00:18]} 33. Kh3 {[%clk 0:01:25]}  exd6 {[%clk 0:00:19]} 34. Qg8+ {[%clk 0:01:23]}  Ke7 {[%clk 0:00:19]} 35. Rf1 {[%clk 0:01:04]}  Qe3+ {[%clk 0:00:15]} 36. Kh2 {[%clk 0:01:04]}  Qh6+ {[%clk 0:00:13]} 37. Kg1 {[%clk 0:00:57]}  Qe3+ {[%clk 0:00:13]} 38. Rdf2 {[%clk 0:00:57]}  d5 {[%clk 0:00:14]} 39. Qf8# {[%clk 0:00:56]} 1-0


[Site "https://www.chess.com"]

[Event "Titled Tuesday Blitz August 09 Early 2022"]
[White "Shpanko, Nadiia"]
[Black "Horcajuelo Rocamora, Martin"]
[WhiteFideId "14132400"]
[BlackFideId "24573027"]
[WhiteElo "2139"]
[BlackElo "1882"]
[Result "1-0"]
[Round "01"]
[TimeControl "180+1"]
[Date "2022.08.09"]
[WhiteClock "0:00:30"]
[BlackClock "0:00:16"]

1. c4 {[%clk 0:03:00]}  e6 {[%clk 0:02:48]} 2. g3 {[%clk 0:02:58]}  c5 {[%clk 0:02:44]} 3. Bg2 {[%clk 0:02:57]}  Nf6 {[%clk 0:02:34]} 4. Nc3 {[%clk 0:02:57]}  Nc6 {[%clk 0:02:29]} 5. Nf3 {[%clk 0:02:57]}  Be7 {[%clk 0:02:30]} 6. O-O {[%clk 0:02:56]}  O-O {[%clk 0:02:23]} 7. d3 {[%clk 0:02:55]}  d5 {[%clk 0:02:20]} 8. cxd5 {[%clk 0:02:52]}  exd5 {[%clk 0:02:21]} 9. d4 {[%clk 0:02:52]}  c4 {[%clk 0:02:18]} 10. b3 {[%clk 0:02:47]}  Bg4 {[%clk 0:01:49]} 11. Ne5 {[%clk 0:02:32]}  Be6 {[%clk 0:01:47]} 12. bxc4 {[%clk 0:02:19]}  dxc4 {[%clk 0:01:45]} 13. Nxc6 {[%clk 0:02:19]}  bxc6 {[%clk 0:01:46]} 14. Bxc6 {[%clk 0:02:19]}  Rc8 {[%clk 0:01:47]} 15. Bg2 {[%clk 0:02:16]}  Bb4 {[%clk 0:01:41]} 16. Bb2 {[%clk 0:02:14]}  Qa5 {[%clk 0:01:39]} 17. Qc2 {[%clk 0:02:12]}  Rfd8 {[%clk 0:01:38]} 18. Rfd1 {[%clk 0:02:09]}  Bf5 {[%clk 0:01:33]} 19. e4 {[%clk 0:02:00]}  Bg4 {[%clk 0:01:30]} 20. f3 {[%clk 0:01:59]}  Be6 {[%clk 0:01:31]} 21. Kh1 {[%clk 0:01:56]}  Nh5 {[%clk 0:01:28]} 22. d5 {[%clk 0:01:52]}  Bd7 {[%clk 0:01:26]} 23. e5 {[%clk 0:01:45]}  Bc5 {[%clk 0:01:26]} 24. Qd2 {[%clk 0:01:34]}  Qb6 {[%clk 0:01:24]} 25. Rab1 {[%clk 0:01:29]}  Be3 {[%clk 0:01:22]} 26. Qe2 {[%clk 0:01:28]}  Nxg3+ {[%clk 0:01:20]} 27. hxg3 {[%clk 0:01:07]}  Qh6+ {[%clk 0:01:20]} 28. Bh3 {[%clk 0:01:07]}  Qxh3+ {[%clk 0:01:20]} 29. Qh2 {[%clk 0:01:07]}  Qxh2+ {[%clk 0:01:19]} 30. Kxh2 {[%clk 0:01:08]}  Bf5 {[%clk 0:01:20]} 31. Ra1 {[%clk 0:00:57]}  Rb8 {[%clk 0:01:18]} 32. Ba3 {[%clk 0:00:56]}  Bd3 {[%clk 0:01:16]} 33. Bd6 {[%clk 0:00:53]}  Rb2+ {[%clk 0:01:15]} 34. Kh3 {[%clk 0:00:52]}  Bd4 {[%clk 0:01:14]} 35. Ne4 {[%clk 0:00:47]}  Re8 {[%clk 0:01:02]} 36. Nc5 {[%clk 0:00:35]}  Rf2 {[%clk 0:00:53]} 37. Nxd3 {[%clk 0:00:34]}  cxd3 {[%clk 0:00:48]} 38. Rab1 {[%clk 0:00:34]}  Rxf3 {[%clk 0:00:48]} 39. Rb3 {[%clk 0:00:33]}  Rc8 {[%clk 0:00:20]} 40. Rbxd3 {[%clk 0:00:32]}  Rc3 {[%clk 0:00:17]} 41. Rxf3 {[%clk 0:00:30]}  Rxf3 {[%clk 0:00:15]} 42. Rxd4 {[%clk 0:00:30]}  Ra3 {[%clk 0:00:15]} 43. Bxa3 {[%clk 0:00:30]}  h5 {[%clk 0:00:16]} 44. Rc4 {[%clk 0:00:30]} 1-0


[Site "https://www.chess.com"]

[Event "Titled Tuesday Blitz August 09 Early 2022"]
[White "Shuvalov, Evgenij"]
[Black "Sarana, Alexey"]
[WhiteFideId "4187237"]
[BlackFideId "24133795"]
[WhiteElo "2058"]
[BlackElo "2666"]
[Result "0-1"]
[Round "01"]
[TimeControl "180+1"]
[Date "2022.08.09"]
[WhiteClock "0:01:40"]
[BlackClock "0:02:47"]

1. Nf3 {[%clk 0:02:59]}  d5 {[%clk 0:03:00]} 2. c4 {[%clk 0:02:59]}  d4 {[%clk 0:03:00]} 3. b4 {[%clk 0:02:59]}  c5 {[%clk 0:03:00]} 4. e3 {[%clk 0:02:58]}  dxe3 {[%clk 0:03:00]} 5. fxe3 {[%clk 0:02:58]}  cxb4 {[%clk 0:03:00]} 6. d4 {[%clk 0:02:58]}  g6 {[%clk 0:02:59]} 7. a3 {[%clk 0:02:57]}  bxa3 {[%clk 0:02:58]} 8. Nxa3 {[%clk 0:02:58]}  Bg7 {[%clk 0:02:58]} 9. Be2 {[%clk 0:02:57]}  Nf6 {[%clk 0:02:59]} 10. O-O {[%clk 0:02:56]}  O-O {[%clk 0:02:59]} 11. c5 {[%clk 0:02:52]}  Nc6 {[%clk 0:02:58]} 12. Nc4 {[%clk 0:02:50]}  Be6 {[%clk 0:02:54]} 13. Qb3 {[%clk 0:02:43]}  Bd5 {[%clk 0:02:51]} 14. Bd2 {[%clk 0:02:30]}  Ne4 {[%clk 0:02:49]} 15. Be1 {[%clk 0:02:27]}  e5 {[%clk 0:02:49]} 16. Qb2 {[%clk 0:02:18]}  exd4 {[%clk 0:02:49]} 17. exd4 {[%clk 0:02:19]}  Nxd4 {[%clk 0:02:47]} 18. Nxd4 {[%clk 0:02:17]}  Bxc4 {[%clk 0:02:48]} 19. Bxc4 {[%clk 0:01:40]}  Bxd4+ {[%clk 0:02:47]} 0-1


[Site "https://www.chess.com"]

[Event "Titled Tuesday Blitz August 09 Early 2022"]
[White "Shuvalova, Polina"]
[Black "Eggleston, Thomas A"]
[WhiteFideId "24171760"]
[BlackFideId "412139"]
[WhiteElo "2330"]
[BlackElo "2155"]
[Result "1-0"]
[Round "01"]
[TimeControl "180+1"]
[Date "2022.08.09"]
[WhiteClock "0:00:13"]
[BlackClock "0:00:07"]

1. Nf3 {[%clk 0:02:56]}  c6 {[%clk 0:02:59]} 2. g3 {[%clk 0:02:54]}  d5 {[%clk 0:02:59]} 3. Bg2 {[%clk 0:02:54]}  Bg4 {[%clk 0:02:59]} 4. c4 {[%clk 0:02:54]}  Nd7 {[%clk 0:02:58]} 5. b3 {[%clk 0:02:54]}  e5 {[%clk 0:02:56]} 6. d3 {[%clk 0:02:53]}  Ngf6 {[%clk 0:02:49]} 7. Bb2 {[%clk 0:02:53]}  Bd6 {[%clk 0:02:46]} 8. Nc3 {[%clk 0:02:51]}  Rc8 {[%clk 0:02:41]} 9. h3 {[%clk 0:02:48]}  Bh5 {[%clk 0:02:40]} 10. g4 {[%clk 0:02:49]}  Bg6 {[%clk 0:02:28]} 11. Nh4 {[%clk 0:02:47]}  d4 {[%clk 0:02:23]} 12. Nxg6 {[%clk 0:02:45]}  dxc3 {[%clk 0:02:08]} 13. Nxh8 {[%clk 0:02:45]}  cxb2 {[%clk 0:02:08]} 14. Rb1 {[%clk 0:02:45]}  Qa5+ {[%clk 0:01:57]} 15. Kf1 {[%clk 0:02:44]}  Qxa2 {[%clk 0:01:41]} 16. Bf3 {[%clk 0:02:34]}  Nc5 {[%clk 0:01:21]} 17. Qc2 {[%clk 0:02:16]}  Qxb3 {[%clk 0:01:00]} 18. Qxb3 {[%clk 0:02:11]}  Nxb3 {[%clk 0:01:00]} 19. Rxb2 {[%clk 0:02:12]}  Nc5 {[%clk 0:00:56]} 20. g5 {[%clk 0:01:43]}  Nfd7 {[%clk 0:00:56]} 21. Bg4 {[%clk 0:01:37]}  b6 {[%clk 0:00:50]} 22. Kg2 {[%clk 0:01:08]}  Ke7 {[%clk 0:00:45]} 23. Nxf7 {[%clk 0:01:07]}  Kxf7 {[%clk 0:00:44]} 24. Ra1 {[%clk 0:01:07]}  Rc7 {[%clk 0:00:40]} 25. h4 {[%clk 0:01:06]}  g6 {[%clk 0:00:32]} 26. Bf3 {[%clk 0:01:01]}  Ne6 {[%clk 0:00:30]} 27. e3 {[%clk 0:00:59]}  Ndc5 {[%clk 0:00:29]} 28. Rd1 {[%clk 0:00:59]}  Be7 {[%clk 0:00:24]} 29. Kf1 {[%clk 0:00:58]}  a5 {[%clk 0:00:24]} 30. d4 {[%clk 0:00:54]}  exd4 {[%clk 0:00:24]} 31. exd4 {[%clk 0:00:55]}  Na4 {[%clk 0:00:24]} 32. Rb3 {[%clk 0:00:49]}  Bb4 {[%clk 0:00:23]} 33. Re3 {[%clk 0:00:42]}  Nc3 {[%clk 0:00:22]} 34. Rdd3 {[%clk 0:00:39]}  Nf4 {[%clk 0:00:22]} 35. Rxc3 {[%clk 0:00:37]}  Bxc3 {[%clk 0:00:22]} 36. Rxc3 {[%clk 0:00:38]}  c5 {[%clk 0:00:22]} 37. d5 {[%clk 0:00:32]}  Ke7 {[%clk 0:00:22]} 38. Re3+ {[%clk 0:00:30]}  Kd6 {[%clk 0:00:22]} 39. Re8 {[%clk 0:00:31]}  Ra7 {[%clk 0:00:21]} 40. Rb8 {[%clk 0:00:21]}  a4 {[%clk 0:00:20]} 41. Rxb6+ {[%clk 0:00:21]}  Ke7 {[%clk 0:00:20]} 42. d6+ {[%clk 0:00:21]}  Kd8 {[%clk 0:00:19]} 43. Bg4 {[%clk 0:00:20]}  Ra8 {[%clk 0:00:19]} 44. d7 {[%clk 0:00:16]}  a3 {[%clk 0:00:18]} 45. Rc6 {[%clk 0:00:17]}  a2 {[%clk 0:00:16]} 46. Rc8+ {[%clk 0:00:17]}  Rxc8 {[%clk 0:00:14]} 47. dxc8=Q+ {[%clk 0:00:18]}  Ke7 {[%clk 0:00:14]} 48. Qb7+ {[%clk 0:00:15]}  Kf8 {[%clk 0:00:14]} 49. Qa8+ {[%clk 0:00:15]}  Kf7 {[%clk 0:00:14]} 50. Qxa2 {[%clk 0:00:16]}  Nd3 {[%clk 0:00:06]} 51. Qe2 {[%clk 0:00:14]}  Nf4 {[%clk 0:00:06]} 52. Qf3 {[%clk 0:00:14]}  Kg7 {[%clk 0:00:06]} 53. Qxf4 {[%clk 0:00:15]}  h5 {[%clk 0:00:06]} 54. Qf6+ {[%clk 0:00:12]}  Kg8 {[%clk 0:00:06]} 55. Be6+ {[%clk 0:00:11]}  Kh7 {[%clk 0:00:06]} 56. Qf7+ {[%clk 0:00:12]}  Kh8 {[%clk 0:00:07]} 57. Qg8# {[%clk 0:00:13]} 1-0


[Site "https://www.chess.com"]

[Event "Titled Tuesday Blitz August 09 Early 2022"]
[White "Siva Mahadevan"]
[Black "Winterberg, Lukas"]
[WhiteFideId "25043153"]
[BlackFideId "24622702"]
[WhiteElo "2203"]
[BlackElo "2349"]
[Result "1-0"]
[Round "01"]
[TimeControl "180+1"]
[Date "2022.08.09"]
[WhiteClock "0:02:04"]
[BlackClock "0:01:21"]

1. e4 {[%clk 0:02:57]}  e6 {[%clk 0:03:00]} 2. d4 {[%clk 0:02:58]}  d5 {[%clk 0:03:01]} 3. Nd2 {[%clk 0:02:57]}  c5 {[%clk 0:03:00]} 4. exd5 {[%clk 0:02:57]}  Qxd5 {[%clk 0:03:01]} 5. dxc5 {[%clk 0:02:58]}  Bxc5 {[%clk 0:03:01]} 6. Ngf3 {[%clk 0:02:58]}  Nf6 {[%clk 0:03:01]} 7. Bc4 {[%clk 0:02:59]}  Qc6 {[%clk 0:03:01]} 8. Qe2 {[%clk 0:03:00]}  O-O {[%clk 0:03:01]} 9. O-O {[%clk 0:03:00]}  a6 {[%clk 0:03:02]} 10. a4 {[%clk 0:03:01]}  b6 {[%clk 0:03:01]} 11. b3 {[%clk 0:03:01]}  Bb7 {[%clk 0:03:02]} 12. Bb2 {[%clk 0:03:02]}  Nbd7 {[%clk 0:03:01]} 13. Rad1 {[%clk 0:03:02]}  Rfe8 {[%clk 0:03:01]} 14. Rfe1 {[%clk 0:02:41]}  Rad8 {[%clk 0:03:00]} 15. Nf1 {[%clk 0:02:41]}  e5 {[%clk 0:02:55]} 16. Ne3 {[%clk 0:02:39]}  h6 {[%clk 0:02:42]} 17. Nf5 {[%clk 0:02:31]}  Ng4 {[%clk 0:02:30]} 18. Rf1 {[%clk 0:02:30]}  Qg6 {[%clk 0:02:23]} 19. N3h4 {[%clk 0:02:22]}  Qg5 {[%clk 0:02:12]} 20. Bc1 {[%clk 0:02:22]}  Qh5 {[%clk 0:02:13]} 21. h3 {[%clk 0:02:18]}  Ngf6 {[%clk 0:02:06]} 22. g4 {[%clk 0:02:18]}  Qxh4 {[%clk 0:01:38]} 23. Nxh4 {[%clk 0:02:18]}  Ne4 {[%clk 0:01:39]} 24. Kh2 {[%clk 0:02:16]}  Nc3 {[%clk 0:01:39]} 25. Qd3 {[%clk 0:02:09]}  Nxd1 {[%clk 0:01:36]} 26. Rxd1 {[%clk 0:02:09]}  Bxf2 {[%clk 0:01:33]} 27. Qf1 {[%clk 0:02:02]}  Bxh4 {[%clk 0:01:22]} 28. Qxf7+ {[%clk 0:02:03]}  Kh8 {[%clk 0:01:21]} 29. Rxd7 {[%clk 0:02:04]} 1-0


[Site "https://www.chess.com"]

[Event "Titled Tuesday Blitz August 09 Early 2022"]
[White "Srihari L R"]
[Black "Filippova, Margarita"]
[WhiteFideId "46617116"]
[BlackFideId "34199680"]
[WhiteElo "2170"]
[BlackElo "1734"]
[Result "1-0"]
[Round "01"]
[TimeControl "180+1"]
[Date "2022.08.09"]
[WhiteClock "0:01:31"]
[BlackClock "0:01:15"]

1. e4 {[%clk 0:02:51]}  e5 {[%clk 0:02:55]} 2. Nf3 {[%clk 0:02:50]}  Nc6 {[%clk 0:02:54]} 3. Bb5 {[%clk 0:02:49]}  g6 {[%clk 0:02:54]} 4. c3 {[%clk 0:02:47]}  a6 {[%clk 0:02:53]} 5. Ba4 {[%clk 0:02:34]}  d6 {[%clk 0:02:52]} 6. d4 {[%clk 0:02:34]}  Bd7 {[%clk 0:02:51]} 7. O-O {[%clk 0:02:33]}  Bg7 {[%clk 0:02:40]} 8. Bg5 {[%clk 0:02:32]}  f6 {[%clk 0:02:39]} 9. Be3 {[%clk 0:02:31]}  Nh6 {[%clk 0:02:40]} 10. dxe5 {[%clk 0:02:27]}  Nxe5 {[%clk 0:02:36]} 11. Nxe5 {[%clk 0:02:24]}  dxe5 {[%clk 0:02:28]} 12. Bb3 {[%clk 0:02:21]}  Nf7 {[%clk 0:02:28]} 13. Qd5 {[%clk 0:02:14]}  O-O {[%clk 0:02:24]} 14. Qxb7 {[%clk 0:02:09]}  Kh8 {[%clk 0:02:10]} 15. Qd5 {[%clk 0:02:06]}  Nd6 {[%clk 0:02:08]} 16. Nd2 {[%clk 0:02:05]}  f5 {[%clk 0:02:01]} 17. Bc5 {[%clk 0:02:01]}  Rf6 {[%clk 0:01:53]} 18. exf5 {[%clk 0:01:58]}  gxf5 {[%clk 0:01:52]} 19. Nf3 {[%clk 0:01:55]}  Be6 {[%clk 0:01:39]} 20. Qxe5 {[%clk 0:01:44]}  Rg6 {[%clk 0:01:35]} 21. Qe3 {[%clk 0:01:33]}  Ne4 {[%clk 0:01:32]} 22. Bd4 {[%clk 0:01:32]}  Bxd4 {[%clk 0:01:27]} 23. Qxd4+ {[%clk 0:01:31]}  Qxd4 {[%clk 0:01:27]} 24. Nxd4 {[%clk 0:01:32]}  Bxb3 {[%clk 0:01:23]} 25. axb3 {[%clk 0:01:32]}  Nd2 {[%clk 0:01:15]} 26. Rfd1 {[%clk 0:01:32]}  Nxb3 {[%clk 0:01:15]} 27. Nxb3 {[%clk 0:01:31]} 1-0


[Site "https://www.chess.com"]

[Event "Titled Tuesday Blitz August 09 Early 2022"]
[White "Sychev, Klementy"]
[Black "Martin Alvarez, Inigo"]
[WhiteFideId "4114060"]
[BlackFideId "2259354"]
[WhiteElo "2564"]
[BlackElo "2280"]
[Result "1-0"]
[Round "01"]
[TimeControl "180+1"]
[Date "2022.08.09"]
[WhiteClock "0:00:39"]
[BlackClock "0:00:23"]

1. d4 {[%clk 0:02:59]}  f5 {[%clk 0:02:59]} 2. e4 {[%clk 0:02:57]}  d6 {[%clk 0:02:58]} 3. Nc3 {[%clk 0:02:55]}  g6 {[%clk 0:02:58]} 4. Bg5 {[%clk 0:02:49]}  h6 {[%clk 0:02:53]} 5. Be3 {[%clk 0:02:47]}  Bg7 {[%clk 0:02:53]} 6. exf5 {[%clk 0:02:35]}  Bxf5 {[%clk 0:02:51]} 7. Bd3 {[%clk 0:02:34]}  Qd7 {[%clk 0:02:46]} 8. Nf3 {[%clk 0:02:33]}  Nc6 {[%clk 0:02:45]} 9. Nh4 {[%clk 0:02:25]}  O-O-O {[%clk 0:02:35]} 10. Nxg6 {[%clk 0:02:20]}  Bxg6 {[%clk 0:02:32]} 11. Bxg6 {[%clk 0:02:20]}  Nf6 {[%clk 0:02:31]} 12. O-O {[%clk 0:02:19]}  h5 {[%clk 0:02:25]} 13. h3 {[%clk 0:02:15]}  e5 {[%clk 0:02:15]} 14. d5 {[%clk 0:02:07]}  Ne7 {[%clk 0:02:14]} 15. Bf7 {[%clk 0:02:07]}  Kb8 {[%clk 0:02:12]} 16. Be6 {[%clk 0:02:08]}  Qe8 {[%clk 0:02:09]} 17. a4 {[%clk 0:02:08]}  Bh6 {[%clk 0:02:05]} 18. Qd2 {[%clk 0:02:04]}  Qf8 {[%clk 0:01:51]} 19. Bxa7+ {[%clk 0:01:56]}  Kxa7 {[%clk 0:01:49]} 20. Nb5+ {[%clk 0:01:56]}  Kb6 {[%clk 0:01:29]} 21. Qd3 {[%clk 0:01:46]}  e4 {[%clk 0:01:00]} 22. Qd4+ {[%clk 0:01:44]}  c5 {[%clk 0:00:58]} 23. dxc6+ {[%clk 0:01:42]}  Kxc6 {[%clk 0:00:57]} 24. Qc4+ {[%clk 0:00:59]}  Kb6 {[%clk 0:00:54]} 25. a5+ {[%clk 0:01:00]}  Ka6 {[%clk 0:00:53]} 26. Nc7+ {[%clk 0:00:48]}  Ka7 {[%clk 0:00:53]} 27. a6 {[%clk 0:00:49]}  Nc6 {[%clk 0:00:37]} 28. Qb5 {[%clk 0:00:41]}  Rb8 {[%clk 0:00:23]} 29. axb7+ {[%clk 0:00:39]} 1-0


[Site "https://www.chess.com"]

[Event "Titled Tuesday Blitz August 09 Early 2022"]
[White "Taboas Rodriguez, Daniel"]
[Black "Quispe Santacruz, Javier"]
[WhiteFideId "2208466"]
[BlackFideId "3800920"]
[WhiteElo "2429"]
[BlackElo "1929"]
[Result "1-0"]
[Round "01"]
[TimeControl "180+1"]
[Date "2022.08.09"]
[WhiteClock "0:02:43"]
[BlackClock "0:01:23"]

1. d4 {[%clk 0:02:59]}  d5 {[%clk 0:02:57]} 2. Nf3 {[%clk 0:03:00]}  Nf6 {[%clk 0:02:56]} 3. c4 {[%clk 0:02:59]}  c6 {[%clk 0:02:56]} 4. cxd5 {[%clk 0:02:59]}  cxd5 {[%clk 0:02:55]} 5. Nc3 {[%clk 0:03:00]}  Nc6 {[%clk 0:02:54]} 6. Bf4 {[%clk 0:03:01]}  a6 {[%clk 0:02:47]} 7. Rc1 {[%clk 0:03:00]}  Bf5 {[%clk 0:02:44]} 8. e3 {[%clk 0:03:00]}  e6 {[%clk 0:02:42]} 9. Qb3 {[%clk 0:02:54]}  b5 {[%clk 0:02:41]} 10. Nxb5 {[%clk 0:02:48]}  axb5 {[%clk 0:02:25]} 11. Bxb5 {[%clk 0:02:48]}  Qa5+ {[%clk 0:01:23]} 12. Ke2 {[%clk 0:02:43]} 1-0


[Site "https://www.chess.com"]

[Event "Titled Tuesday Blitz August 09 Early 2022"]
[White "Tatarinov, Dmitry"]
[Black "Gatterer, Florian"]
[WhiteFideId "24160067"]
[BlackFideId "811688"]
[WhiteElo "2324"]
[BlackElo "2218"]
[Result "1-0"]
[Round "01"]
[TimeControl "180+1"]
[Date "2022.08.09"]
[WhiteClock "0:02:24"]
[BlackClock "0:01:11"]

1. d4 {[%clk 0:02:57]}  d5 {[%clk 0:02:58]} 2. Nf3 {[%clk 0:02:56]}  Nf6 {[%clk 0:02:55]} 3. c4 {[%clk 0:02:56]}  e6 {[%clk 0:02:56]} 4. Nc3 {[%clk 0:02:56]}  c5 {[%clk 0:02:54]} 5. cxd5 {[%clk 0:02:55]}  Nxd5 {[%clk 0:02:54]} 6. e4 {[%clk 0:02:55]}  Nxc3 {[%clk 0:02:54]} 7. bxc3 {[%clk 0:02:55]}  cxd4 {[%clk 0:02:54]} 8. cxd4 {[%clk 0:02:56]}  Bb4+ {[%clk 0:02:54]} 9. Bd2 {[%clk 0:02:56]}  Bxd2+ {[%clk 0:02:53]} 10. Qxd2 {[%clk 0:02:57]}  O-O {[%clk 0:02:53]} 11. Bc4 {[%clk 0:02:57]}  Nd7 {[%clk 0:02:53]} 12. O-O {[%clk 0:02:57]}  b6 {[%clk 0:02:53]} 13. Rad1 {[%clk 0:02:51]}  Bb7 {[%clk 0:02:51]} 14. Rfe1 {[%clk 0:02:52]}  Rc8 {[%clk 0:02:51]} 15. Bb3 {[%clk 0:02:52]}  h6 {[%clk 0:02:51]} 16. h3 {[%clk 0:02:50]}  Qf6 {[%clk 0:02:49]} 17. d5 {[%clk 0:02:48]}  exd5 {[%clk 0:02:45]} 18. e5 {[%clk 0:02:45]}  Qg6 {[%clk 0:02:19]} 19. Nd4 {[%clk 0:02:35]}  Nc5 {[%clk 0:02:18]} 20. Bc2 {[%clk 0:02:34]}  Ne4 {[%clk 0:02:17]} 21. Qe3 {[%clk 0:02:33]}  Qg5 {[%clk 0:02:10]} 22. f4 {[%clk 0:02:30]}  Qh5 {[%clk 0:01:54]} 23. g4 {[%clk 0:02:25]}  Qh4 {[%clk 0:01:49]} 24. Nf5 {[%clk 0:02:25]}  Qxe1+ {[%clk 0:01:19]} 25. Rxe1 {[%clk 0:02:26]}  Rxc2 {[%clk 0:01:18]} 26. Rc1 {[%clk 0:02:26]}  Rfc8 {[%clk 0:01:17]} 27. Ne7+ {[%clk 0:02:25]}  Kf8 {[%clk 0:01:14]} 28. Nxc8 {[%clk 0:02:25]}  Bxc8 {[%clk 0:01:11]} 29. Rxc2 {[%clk 0:02:24]} 1-0


[Site "https://www.chess.com"]

[Event "Titled Tuesday Blitz August 09 Early 2022"]
[White "Terrieux, Kevin"]
[Black "Mouhamad, Joachim"]
[WhiteFideId "622591"]
[BlackFideId "656410"]
[WhiteElo "2461"]
[BlackElo "2147"]
[Result "1-0"]
[Round "01"]
[TimeControl "180+1"]
[Date "2022.08.09"]
[WhiteClock "0:02:05"]
[BlackClock "0:01:26"]

1. d4 {[%clk 0:02:59]}  Nf6 {[%clk 0:02:58]} 2. f3 {[%clk 0:02:59]}  c5 {[%clk 0:02:55]} 3. d5 {[%clk 0:02:58]}  e6 {[%clk 0:02:55]} 4. c4 {[%clk 0:02:58]}  exd5 {[%clk 0:02:55]} 5. cxd5 {[%clk 0:02:58]}  d6 {[%clk 0:02:55]} 6. Nc3 {[%clk 0:02:58]}  g6 {[%clk 0:02:55]} 7. e4 {[%clk 0:02:59]}  Bg7 {[%clk 0:02:55]} 8. Nge2 {[%clk 0:02:59]}  O-O {[%clk 0:02:55]} 9. Ng3 {[%clk 0:02:59]}  h5 {[%clk 0:02:50]} 10. Bg5 {[%clk 0:02:57]}  Nbd7 {[%clk 0:02:44]} 11. Be2 {[%clk 0:02:56]}  a6 {[%clk 0:02:40]} 12. a4 {[%clk 0:02:56]}  Qe8 {[%clk 0:02:37]} 13. Qd2 {[%clk 0:02:51]}  Nh7 {[%clk 0:02:36]} 14. Bh4 {[%clk 0:02:44]}  f6 {[%clk 0:02:29]} 15. f4 {[%clk 0:02:39]}  Qe7 {[%clk 0:02:18]} 16. O-O {[%clk 0:02:34]}  Bh6 {[%clk 0:02:01]} 17. Qc2 {[%clk 0:02:20]}  Qg7 {[%clk 0:01:45]} 18. Bxh5 {[%clk 0:02:09]}  gxh5 {[%clk 0:01:37]} 19. Nf5 {[%clk 0:02:06]}  Qe7 {[%clk 0:01:26]} 20. Nxe7+ {[%clk 0:02:05]} 1-0


[Site "https://www.chess.com"]

[Event "Titled Tuesday Blitz August 09 Early 2022"]
[White "Thiel, Thomas"]
[Black "Al-Tarboush, Ward"]
[WhiteFideId "4615964"]
[BlackFideId "7601450"]
[WhiteElo "2227"]
[BlackElo "2234"]
[Result "1-0"]
[Round "01"]
[TimeControl "180+1"]
[Date "2022.08.09"]
[WhiteClock "0:00:39"]
[BlackClock "0:00:30"]

1. e4 {[%clk 0:03:00]}  c5 {[%clk 0:02:59]} 2. Nc3 {[%clk 0:02:59]}  Nc6 {[%clk 0:02:59]} 3. Bb5 {[%clk 0:02:56]}  e6 {[%clk 0:02:57]} 4. Bxc6 {[%clk 0:02:55]}  bxc6 {[%clk 0:02:49]} 5. f4 {[%clk 0:02:56]}  Ne7 {[%clk 0:02:39]} 6. Nf3 {[%clk 0:02:56]}  Qc7 {[%clk 0:02:09]} 7. d3 {[%clk 0:02:54]}  f6 {[%clk 0:01:58]} 8. O-O {[%clk 0:02:51]}  Ng6 {[%clk 0:01:50]} 9. f5 {[%clk 0:02:38]}  Ne5 {[%clk 0:01:37]} 10. Nxe5 {[%clk 0:02:36]}  Qxe5 {[%clk 0:01:32]} 11. fxe6 {[%clk 0:02:30]}  Qxe6 {[%clk 0:01:28]} 12. Be3 {[%clk 0:02:15]}  Be7 {[%clk 0:01:25]} 13. Qh5+ {[%clk 0:02:01]}  g6 {[%clk 0:01:24]} 14. Qh6 {[%clk 0:01:57]}  d6 {[%clk 0:01:20]} 15. Rae1 {[%clk 0:01:51]}  Bd7 {[%clk 0:01:19]} 16. d4 {[%clk 0:01:45]}  cxd4 {[%clk 0:01:13]} 17. Bxd4 {[%clk 0:01:46]}  Rb8 {[%clk 0:01:04]} 18. b3 {[%clk 0:01:42]}  a5 {[%clk 0:01:00]} 19. Nd5 {[%clk 0:01:24]}  Rf8 {[%clk 0:00:35]} 20. Nc7+ {[%clk 0:00:51]}  Kd8 {[%clk 0:00:35]} 21. Nxe6+ {[%clk 0:00:51]}  Bxe6 {[%clk 0:00:36]} 22. Qg7 {[%clk 0:00:47]}  c5 {[%clk 0:00:35]} 23. Bxf6 {[%clk 0:00:45]}  Rxf6 {[%clk 0:00:34]} 24. Rxf6 {[%clk 0:00:46]}  Bxf6 {[%clk 0:00:34]} 25. Qxf6+ {[%clk 0:00:46]}  Kd7 {[%clk 0:00:34]} 26. Rd1 {[%clk 0:00:42]}  Re8 {[%clk 0:00:33]} 27. Qc3 {[%clk 0:00:40]}  Kc6 {[%clk 0:00:33]} 28. Qxa5 {[%clk 0:00:40]}  Bc8 {[%clk 0:00:30]} 29. Qa4+ {[%clk 0:00:39]} 1-0


[Site "https://www.chess.com"]